Workbook

Sheet Cover
B7: GRANT THORNTON SERVICE ANALYSIS TOOL
C9: Welcome to Grant Thornton's Service Analysis Tool. In 8 quick steps
C10: you will be able to utilise this tool to understand the following key
C11: aspects of your service department:
C13: 1. | D13: What is my capacity based on my current technician numbers?
C15: 2. | D15: How much additional gross margin can I achieve through operating
D16: at the benchmark Performance Index?
C18: 3. | D18: Do I have the correct number of non-productive employees?
C20: 4. | D20: How much of my facility am I utilising?
C22: 5. | D22: What is my average prime labour cost?
C24: 6. | D24: Based on my prime labour cost what is my target gross profit?
C26: 7. | D26: Is the size of my service deparment relative to the number of new
D27: and used vehicles the dealership sells
C29: 8. | D29: Do I have the capacity for business that is currently sublet?
C31: If you have any questions on how you can utilise this tool for your
C32: dealership or tips on how to maximise your service department
C33: profitability please contact a Grant Thornton Automotive retail partner.

Sheet Dealership name
B7: Please enter the dealership name? | E7: Sample Motors
B9: What is the period being reviewed? | E9: Jan | F9: to | G9: Jun
B11: Number of months being reviewed? | E11: 6

Sheet Labour rates
B7: What are the dealerships average labour rates during the period?
B9: Retail (avg inclusive of fleet) | F9: 100
B10: Internal | F10: 90
B11: Warranty | F11: 90

Sheet Labour Sales
B7: What were the dealerships total labour sales during the period?
B9: Retail (avg inclusive of fleet) | F9: =35000*6 -> 210000
B10: Internal | F10: =6000*6 -> 36000
B11: Warranty | F11: =8500*6 -> 51000

Sheet Productive employees
B7: How many productive employees does the service department have?
B9: Qualified Technicians | F9: 4
B10: 4th Year Apprentice | F10: 1
B11: 3rd Year Apprentice | F11: 1
B12: 2nd Year Apprentice | F12: 1
B13: 1st Year Apprentice
B14: Foreman | F14: 1
B16: What is the Foreman's average productivity percentage? | F16: 0.4

Sheet Non Productive Employees
B7: How many non productive employees does the service department have?
B9: Manager/s | E9: 1
B10: Service Advisors | E10: 3
B11: Warranty Clerk | E11: 1
B12: Costing Clerk
B13: Other | E13: 1

Sheet Facility
B7: How big is the service facility?
B9: Number of bays with hoists | F9: 8
B10: Number of additional bays | F10: 3
B11: Total | F11: =F9+F10 -> 11

Sheet Relative Size
B7: What are the total vehicle sales during the period being reviewed?
B9: Total new vehicle sales | I9: 132
B10: Total used vehicle sales (excluding wholesale) | I10: 108

Sheet Labour Gross
B7: What is the average labour gross during the period being reviewed? | I7: 0.7 | J7: enter as a %

Sheet Sublet
B7: What are the total sublet sales during the period being reviewed?
B9: Sublet sales (total for the period) | F9: 180000
B10: Sublet gross (average) | F10: 0.06 | G10: enter as a %

Sheet Calculations (hidden)
B2: Analysing Your Service Business - These Numbers Don’t Lie
B4: ='Dealership name'!E7 -> Sample Motors
B6: Based on the information provided where are the key improvement opportunites in this business.
B9: Labour Rates | E9: Sales Mix
C10: $ per hour (ex GST) | F10: $ per month | G10: % Mix
B11: Retail (avg incl fleet) | C11: ='Labour rates'!F9 -> 100 | E11: Retail | F11: ='Labour Sales'!F9/'Dealership name'!$E$11 -> 35000 | G11: =F11/F15 -> 0.7070707071
B12: Internal | C12: ='Labour rates'!F10 -> 90 | E12: Internal | F12: ='Labour Sales'!F10/'Dealership name'!$E$11 -> 6000 | G12: =F12/F15 -> 0.1212121212
B13: Warranty (avg) | C13: ='Labour rates'!F11 -> 90 | E13: Warranty | F13: ='Labour Sales'!F11/'Dealership name'!$E$11 -> 8500 | G13: =F13/F15 -> 0.1717171717
B15: Average Rate (based on Mix) | C15: =(C11*G11)+(C12*G12)+(C13*G13) -> 97.07070707 | E15: Total | F15: =SUM(F11:F13) -> 49500
B18: Department Head Count | C18: No of Employees | F18: =C18 -> No of Employees
B20: Qualified Technicians | C20: ='Non Productive Employees'!E9 -> 1 | D20: =C20 -> 1 | E20: Manager/s | F20: ='Non Productive Employees'!E9 -> 1
B21: 4th Year Apprentice | C21: ='Non Productive Employees'!E10 -> 3 | D21: =C21 -> 3 | E21: Service Advisors | F21: ='Non Productive Employees'!E10 -> 3
B22: 3rd Year Apprentice | C22: ='Non Productive Employees'!E11 -> 1 | D22: =C22*0.75 -> 0.75 | E22: Warranty Clerk | F22: ='Non Productive Employees'!E11 -> 1
B23: 2nd Year Apprentice | C23: ='Non Productive Employees'!E12 -> 0 | D23: =C23*0.5 -> 0 | E23: Costing Clerk | F23: ='Non Productive Employees'!E12 -> 0
B24: 1st Year Apprentice | C24: ='Non Productive Employees'!E13 -> 1 | D24: =C24*0.25 -> 0.25 | E24: Other | F24: ='Non Productive Employees'!E13 -> 1
B25: Foreman (add % productivity) | C25: ='Non Productive Employees'!E14 -> 0 | D25: ='Productive employees'!F16 -> 0.4
D26: =D25*C25 -> 0
B27: Total Chargeable (adjusted) | C27: =SUM(D20:D24)+D26 -> 5 | E27: Total Non Chargeable | F27: =SUM(F20:F24) -> 6
B29: Facility Details | E29: Vehicle Sales
B31: Number of Hoists | C31: =Facility!F9 -> 8 | E31: Total New per month | F31: ='Relative Size'!I9/'Dealership name'!$E$11 -> 22
B32: Number of Additional Bays | C32: =Facility!F10 -> 3 | E32: Total Used (excl whl) | F32: ='Relative Size'!I10/'Dealership name'!$E$11 -> 18
B34: Total Bays | C34: =C32+C31 -> 11 | E34: Total Cars Sold | F34: =F32+F31 -> 40
B36: Gross Profit Details | E36: Sublet Details
B38: Total Labour Gross % | C38: ='Labour Gross'!I7 -> 0.7 | E38: Monthly Sublet Sales | F38: =Sublet!F9/'Dealership name'!$E$11 -> 30000
B39: Monthly $ Labour Gross | C39: =F15*C38 -> 34650 | E39: Sublet Gross % | F39: =Sublet!F10 -> 0.06

Sheet Report
B7: ='Dealership name'!E7 -> Sample Motors
B8: Service Analyis for the | D8: ='Dealership name'!E11 -> 6 | E8: Month
B9: Period Ended | D9: ='Dealership name'!G9 -> Jun
N12: The information contained herein is of a general nature and is not intended to address the circumstances of any particular individual or entity. Although we endeavour to provide accurate and timely information, there can be no guarantee that such information is accurate as of the date it is received or that it will continue to be accurate in the future. No one is entitled to rely on this information and no one should act on such information without appropriate professional advice obtained after a thorough examination of the particular situation.
C13: Productivity and Efficiency | E13: B'mark | I13: Prime Labour Cost
C15: Monthly Labour Sales per Technician | D15: =Calculations!F15/Calculations!C27 -> 9900 | E15: 16000 | I15: =Report!C15 -> Monthly Labour Sales per Technician | J15: =Report!D15 -> 9900
C16: Available Monthly Sales per Technician | D16: =Calculations!C15*150 -> 14560.60606 | I16: Monthly Labour Gross per Tech | J16: =Calculations!C39/Calculations!C27 -> 6930
C18: Performance Index | D18: =D15/D16 -> 0.6799167534 | E18: 1 | I18: Monthly Cost of Sales | J18: =J15-J16 -> 2970
I19: Avg Weekly technician wage* | J19: =J18/4.33333 -> 685.3851426
C20: Average Labour Rate | D20: =Calculations!C15 -> 97.07070707 | I20: Prime Labour Cost per hour | J20: =J19/38 -> 18.03645112
C21: Average Labour Rate Recovered | D21: =D15/150 -> 66 | E21: =D20*0.95 -> 92.21717172
C22: Hours Sold per Technician per month | D22: =D15/D20 -> 101.987513 | E22: 150 | I22: Target GP % | J22: =1-(J20/Report!D20) -> 0.8141926471
C23: Unrecovered Hours per Tech per month | D23: =(D16-D15)/D20 -> 48.01248699 | I23: Current GP % | J23: =Calculations!C38 -> 0.7 | N23: “Grant Thornton” refers to the brand under which the Grant Thornton member firms provide assurance, tax and advisory services to their clients and/or refers to one or more member firms, as the context requires. Grant Thornton Australia Ltd is a member firm of Grant Thornton International Ltd (GTIL). GTIL and the member firms are not a worldwide partnership. GTIL and each member firm is a separate legal entity. Services are delivered by the member firms. GTIL does not provide services to clients. GTIL and its member firms are not agents of, and do not obligate one another and are not liable for one another’s acts or omissions. In the Australian context only, the use of the term 'Grant Thornton' may refer to Grant Thornton Australia Limited ABN 41 127 556 389 and its Australian subsidiaries and related entities. GTIL is not an Australian related entity to Grant Thornton Australia Limited.
C24: Your current level of labour sales
C25: could be achieved with | D25: =Calculations!C27-(Calculations!F15/D16) -> 1.600416233 | E25: less technicians
H26: If this number does not seem correct please confirm your technician numbers. If these are accurate you may want to look further into what makes up your labour COS and WIP accounts.
C27: Benefit to dealership if benchmark reached | D27: =(Calculations!C27*D16)-Calculations!F15 -> 23303.0303 | E27: per month
D28: =D27*12 -> 279636.3636 | E28: per annum
C33: Employee Numbers | E33: B'mark | I33: Relative Size | K33: B'mark
C35: Productive to Non Productive Employee Ratio | D35: =Calculations!C27/Calculations!F27 -> 0.8333333333 | E35: 2 to 1 | I35: Total monthly labour sales | J35: =Calculations!F15 -> 49500
C36: Technician to Service Advisor Ratio | D36: =Calculations!C27/Calculations!F21 -> 1.666666667 | E36: 5 to 1 | I36: Retail monthly labour sales | J36: =Calculations!F11 -> 35000
I37: Number of Cars Sold | J37: =Calculations!F34 -> 40
I39: Total Labour sold per vehicle | J39: =J35/J37 -> 1237.5 | K39: 1500
I40: Total retail Labour sold per vehicle | J40: =J36/J37 -> 875 | K40: 1000
C41: Facility | N41: Liability limited by a scheme approved under Professional Standards Legislation. Liability is limited in those States where a current scheme applies.
C43: =Calculations!B31 -> Number of Hoists | D43: =Calculations!C31 -> 8
C44: =Calculations!B32 -> Number of Additional Bays | D44: =Calculations!C32 -> 3
C45: =Calculations!B34 -> Total Bays | D45: =Calculations!C34 -> 11 | I45: Sublet Analysis
C47: % of Bays With Hoists | D47: =D43/D45 -> 0.7272727273 | E47: Min 60% | I47: Current monthly sublet sales | J47: =Calculations!F38 -> 30000
I48: Current monthly sublet COS | J48: =J47*(1-Calculations!F39) -> 28200
C49: Available Labour Throughput | D49: =D45*Report!D16 -> 160166.6667
C50: Current Sales | D50: =Report!J35 -> 49500 | I50: Equivalent hours if bought back in house* | J50: =(J48/Calculations!C15)*0.6 -> 174.3059313
I51: Current unrecovered Hours | J51: =Report!D23*Calculations!C27 -> 240.062435
C52: Facility Utilisation | D52: =D50/D49 -> 0.3090530697
I53: *assume 40% of sublet cost is parts
